Cogmind - Beta 17.1 @@@ ROGUE MODE // 2026.09.16 @ 22:04:19 Player: Caluan Result: Self-destructed Performance ------------- Evolutions (5) 2500 Regions Visited (16) 3200 Robots Destroyed (212) 1060 Value Destroyed (9391) 9391 Prototype IDs (5) 100 Alien Tech Used (0) 0 Bonus (4306) 4306 TOTAL SCORE: 20557 Bonus ------- High Alert Combat Kills 1068 Follower Combat Kills 1538 Entered Garrisons 600 Used RIF Installer 1500 Friendly Fire -400 Cogmind --------- Core Integrity 612/1000 Matter 287/300 Energy 350/350 System Corruption 1% Temperature Cool (0) Movement Core (1850) Ox36 Location -5/Upper Caves Parts ------- > --- POWER (1) -------- Reinforced Quantum Reactor > --- PROPULSION (4) --- (None) > --- UTILITY (9) ------ Huge Storage Unit Improved Transmission Jammer Relay Coupler [NC] (9) Relay Coupler [Swarmer] (25) Relay Coupler [Brawler] (15) Relay Coupler [Duelist] (23) Relay Coupler [Specialist] (20) Relay Coupler [Hunter] (15) > --- WEAPON (3) ------- (None) > --- INVENTORY (25) --- Light Angular Momentum Engine Neutrino Core Light Antimatter Reactor Huge Storage Unit Compact Battery (200) High-capacity Matter Pod (200) Hardened Heavy Armor Plating Graphene Brace Relay Coupler [NC] (27) Relay Coupler [NC] (28) Relay Coupler [NC] (27) Relay Coupler [NC] (27) Relay Coupler [NC] (28) Relay Coupler [Brawler] (28) Relay Coupler [Duelist] (23) Relay Coupler [Hunter] (17) Relay Coupler [Hunter] (18) Mini Grenade Launcher Mini Grenade Launcher Improved Datajack Katana Heavy Explosive Trap Peak State ------------ > --- POWER ------------ Reinforced Quantum Reactor > --- PROPULSION ------- Armored Treads Armored Treads > --- UTILITY ---------- Huge Storage Unit Improved Transmission Jammer Relay Coupler [NC] Relay Coupler [Swarmer] Relay Coupler [Brawler] Relay Coupler [Duelist] Relay Coupler [Specialist] Relay Coupler [Specialist] Relay Coupler [Hunter] > --- WEAPON ----------- Gauss Rifle KE Penetrator Improved Remote Datajack > --- INVENTORY -------- Light Angular Momentum Engine Neutrino Core Light Antimatter Reactor Huge Storage Unit Compact Battery High-capacity Matter Pod Hardened Heavy Armor Plating Graphene Brace Relay Coupler [NC] Relay Coupler [NC] Relay Coupler [NC] Relay Coupler [NC] Relay Coupler [NC] Relay Coupler [Brawler] Relay Coupler [Duelist] Relay Coupler [Hunter] Relay Coupler [Hunter] Drone Bay Mini Grenade Launcher Mini Grenade Launcher Remote Datajack Katana Heavy Explosive Trap [Rating: 70] Favorites ----------- Power Heavy Ion Engine Engine Heavy Ion Engine Power Core Nuclear Core Reactor Reinforced Quantum Reactor Propulsion Light Treads Treads Light Treads Utility Huge Storage Unit Device Improved Heat Sink Storage Huge Storage Unit Processor Core Analyzer Hackware Relay Coupler [Duelist] Protection Hardened Medium Armor Plating Weapon Gauss Rifle Energy Gun Backup Laser III Energy Cannon Beam Cannon Ballistic Gun Gauss Rifle Ballistic Cannon Mini Assault Cannon Launcher Grenade Launcher Special Weapon Remote Datajack Slashing Weapon Katana Special Melee Weapon Improved Datajack Build | -11 -10 -10 -9 -9 -8 -8 -8 -7 -7 -7 -7 -7 -6 -6 -5 -5 ------- Run | Yrd Mat Min Mat Min Mat Gar Mat Fac Was Fac Sto Gar Fac Gar Fac Upp Slots Evolved 10 | . . . 2 . 2 . . 2 . . . . 2 . 2 . Power . | . . . . . . . . . . . . . . . . . Propulsion 2 | . . . 1 . . . . . . . . . 1 . . . Utility 7 | . . . 1 . 1 . . 2 . . . . 1 . 2 . Weapon 1 | . . . . . 1 . . . . . . . . . . . Parts Attached 161 | 6 5 2 7 11 14 13 11 14 5 9 6 21 2 29 3 3 Power 12 | 1 1 . 1 1 1 1 . . . . 1 2 1 2 . . Engine 9 | 1 1 . 1 1 . 1 . . . . 1 1 1 1 . . Core 2 | . . . . . 1 . . . . . . 1 . . . . Reactor 1 | . . . . . . . . . . . . . . 1 . . Propulsion 40 | 2 . 1 2 5 3 4 2 3 1 1 2 2 1 10 . 1 Treads 40 | 2 . 1 2 5 3 4 2 3 1 1 2 2 1 10 . 1 Leg . | . . . . . . . . . . . . . . . . . Wheel . | . . . . . . . . . . . . . . . . . Hover . | . . . . . . . . . . . . . . . . . Flight . | . . . . . . . . . . . . . . . . . Utility 58 | 1 2 . 2 2 5 2 5 9 2 2 2 11 . 10 1 2 Device 9 | . 1 . . . 2 . . . . . 1 2 . 1 1 1 Storage 4 | 1 1 . . . . . . . . 1 1 . . . . . Processor 8 | . . . . 1 2 . . 3 1 . . . . 1 . . Hackware 29 | . . . . . . 1 5 4 1 1 . 8 . 8 . 1 Protection 8 | . . . 2 1 1 1 . 2 . . . 1 . . . . Artifact . | . . . . . . . . . . . . . . . . . Weapon 51 | 2 2 1 2 3 5 6 4 2 2 6 1 6 . 7 2 . Energy Gun . | . . . . . . . . . . . . . . . . . Energy Cannon 2 | . 2 . . . . . . . . . . . . . . . Ballistic Gun 25 | 2 . . 2 2 3 3 3 1 . . . 4 . 4 1 . Ballistic Cannon 10 | . . . . . 2 1 . . . 4 1 1 . 1 . . Launcher 6 | . . 1 . 1 . . . . 2 . . 1 . 1 . . Special Weapon 4 | . . . . . . . . 1 . 1 . . . 1 1 . Impact Weapon . | . . . . . . . . . . . . . . . . . Slashing Weapon 2 | . . . . . . 1 . . . 1 . . . . . . Piercing Weapon . | . . . . . . . . . . . . . . . . . Special Melee Weapon 2 | . . . . . . 1 1 . . . . . . . . . Unidentified Prototypes 5 | . . . 1 . 1 1 . . 1 1 . . . . . . Parts Lost 81 | . 1 1 3 8 6 7 3 2 5 . 5 3 1 26 1 9 Power 10 | . 1 . 1 1 . 1 . . 1 . 1 1 1 2 . . Propulsion 34 | . . 1 1 4 4 2 2 . 2 . 2 1 . 11 1 3 Utility 14 | . . . 1 1 1 1 . 1 . . 2 1 . 4 . 2 Weapon 23 | . . . . 2 1 3 1 1 2 . . . . 9 . 4 Highest Loss Streak 10 | . 1 1 1 7 5 3 2 1 5 . 2 1 1 10 1 3 To Critical Strikes . | . . . . . . . . . . . . . . . . . Average Backups 16 | . 8 10 13 17 17 22 17 22 9 6 11 20 23 21 22 21 Power 1 | . . . 1 1 2 2 2 2 . . . . . 1 2 3 Propulsion 1 | . . . 2 5 4 2 . 2 1 1 1 1 2 2 . . Utility 6 | . . 1 1 1 1 10 11 10 4 2 4 8 13 11 16 14 Weapon 6 | . 6 8 8 9 7 6 3 5 1 2 5 10 7 4 3 2 Tool/Special . | . . . . . . . . . . . . . . . . . Unused Backups 42 | . . . 2 . 4 1 . 1 14 . . 1 . . 1 18 Power 6 | . . . . . 1 . . . 2 . . . . . . 3 Propulsion 7 | . . . 1 . . . . 1 5 . . . . . . . Utility 17 | . . . . . . . . . 3 . . . . . . 14 Weapon 9 | . . . 1 . 3 1 . . 3 . . 1 . . . . Tool/Special 3 | . . . . . . . . . 1 . . . . . 1 1 Average Slot Usage (%) 89 | . 97 99 92 89 93 91 99 91 60 85 89 88 77 80 84 79 Engine 6 | . 13 14 9 10 5 1 9 7 5 7 6 3 2 3 . . Core 1 | . . . . . 3 5 . . . . . 3 1 . . . Treads 21 | . 28 27 28 31 26 26 26 23 9 14 14 15 20 20 13 10 Device 5 | . 12 14 11 1 4 5 . . . . 2 6 6 1 4 5 Storage 8 | . 14 14 11 11 9 9 9 7 1 5 7 7 6 6 5 5 Processor 7 | . . . . 6 16 18 2 3 17 23 18 7 6 . . . Hackware 13 | . . . . . . . 24 24 9 15 15 20 13 31 35 35 Protection 1 | . . . 8 6 4 2 . 2 1 . . . . . . . Energy Cannon 3 | . 24 27 2 . . . . . . . . . . . . . Ballistic Gun 10 | . 3 . 19 21 14 7 23 18 4 . . 14 18 7 8 8 Ballistic Cannon 3 | . . . . . 7 10 . . . 7 22 4 . . . . Special Weapon 1 | . . . . . . . . 2 . . . 3 . 2 5 4 Peak Build Rating 70 | 6 10 10 16 16 34 32 34 48 48 56 57 55 54 59 67 70 Average Rating 35 | 4 8 9 13 14 28 29 31 36 34 49 53 51 51 47 65 63 On Entrance 33 | . 6 10 10 15 16 30 31 34 48 41 56 44 50 54 59 67 Avg Prop Armor Cover (%) 24 | . . . . . . . . . 32 14 . . . 33 . . Naked Turns . | . . . . . . . . . . . . . . . . . Heaviest Build 124 | 10 90 90 98 95 106 105 97 106 106 24 100 106 105 120 124 124 Greatest Support 110 | 40 40 40 60 60 60 60 60 60 60 98 98 90 110 110 60 60 Greatest Overweight (x) 40 | 2 2 2 4 1 1 1 2 1 1 1 1 1 . 38 3 40 Average Overweight (x) 1 | . 1 2 1 1 1 1 1 1 . . . 1 . 1 2 3 Largest Inventory Capacity 25 | 8 25 25 25 25 25 25 25 25 25 10 25 25 25 25 25 25 Average Capacity 23 | 7 21 25 25 25 25 25 25 25 8 8 21 25 25 25 25 25 Most Carried 25 | 2 11 11 23 23 24 25 22 25 25 9 15 25 25 25 25 25 Average Carried 17 | . 8 10 13 17 18 22 17 22 8 7 12 20 24 22 24 23 Final Capacity 25 | 8 25 25 25 25 25 25 25 25 5 10 25 25 25 25 25 25 Final Carried 25 | 2 11 11 23 17 23 21 21 25 5 9 15 25 25 23 25 23 Class Distribution -------------------- 22% | Mutant 17% | Bothacker-Gunner 16% | Bothacker-Mutant 13% | Bothacker-Tank 11% | Scavenger-Gunner 10% | Scavenger-Mutant 6% | Gunner Dominant Class ---------------- Mutant | -10/Materials Mutant | -10/Mines Scavenger-Mutant | -9/Materials Scavenger-Mutant | -9/Mines Scavenger-Gunner | -8/Materials Scavenger-Gunner | -8/Garrison Bothacker-Gunner | -8/Materials Bothacker-Gunner | -7/Factory Mutant | -7/Waste Mutant | -7/Factory Gunner | -7/Storage Bothacker-Tank | -7/Garrison Bothacker-Tank | -6/Factory Bothacker-Mutant | -6/Garrison Bothacker-Gunner | -5/Factory Bothacker-Gunner | -5/Upper Caves Resources | -11 -10 -10 -9 -9 -8 -8 -8 -7 -7 -7 -7 -7 -6 -6 -5 -5 ----------- Run | Yrd Mat Min Mat Min Mat Gar Mat Fac Was Fac Sto Gar Fac Gar Fac Upp Matter Collected 7501 | 196 203 4 739 138 839 696 464 482 162 191 786 847 133 1222 159 240 Remotely . | . . . . . . . . . . . . . . . . . Salvage Created 8673 | . 653 33 1065 145 932 612 606 510 349 576 649 551 238 1139 370 245 Parts 445 | . 35 6 62 5 62 32 23 24 8 22 43 30 9 67 12 5 Haulers Intercepted 14 | . 2 . 5 . 2 . 1 . . 3 1 . . . . . Recyclers Shooed 8 | . 2 . . . . . . 2 . . 1 . . . 3 . Parts Field Recycled . | . . . . . . . . . . . . . . . . . Retrieved Matter . | . . . . . . . . . . . . . . . . . Parts Self-Destructed 5 | . . . . . . . . . . . . . . . . 5 Prevented . | . . . . . . . . . . . . . . . . . Parts Restored . | . . . . . . . . . . . . . . . . . Kills | -11 -10 -10 -9 -9 -8 -8 -8 -7 -7 -7 -7 -7 -6 -6 -5 -5 ------- Run | Yrd Mat Min Mat Min Mat Gar Mat Fac Was Fac Sto Gar Fac Gar Fac Upp Combat Hostiles Destroyed 193 | . 15 3 18 22 17 23 8 11 1 6 15 15 4 27 3 5 Melee 5 | . . . . . . . . . . 1 . . . 4 . . Guns 95 | . 2 . 10 5 15 5 8 11 1 1 . 9 4 19 3 2 Cannons 59 | . 13 . 2 . 2 18 . . . 3 15 6 . . . . AOE 34 | . . 3 6 17 . . . . . 1 . . . 4 . 3 Classes Destroyed 18 | . 4 1 3 2 3 . . 1 1 1 1 . . 1 . . Worker 5 | . . . . . 3 . . 1 . 1 . . . . . . Builder 5 | . . . . . . . . . . 1 3 . . . 1 . Tunneler 1 | . . 1 . . . . . . . . . . . . . . Hauler 14 | . 2 . 5 . 2 . 1 . . 3 1 . . . . . Recycler 10 | . 1 . 3 . 1 . 2 . . 2 . . . . 1 . Watcher 2 | . . . 1 . . . . . . . 1 . . . . . Swarmer 37 | . 6 3 4 . 4 4 . 2 . . 1 6 . 7 . . Grunt 94 | . 9 . 10 1 7 16 7 7 . 4 8 4 4 10 2 5 Brawler 3 | . . . 1 . . . . 1 . . . . . 1 . . Duelist 5 | . . . . 1 . 2 . . . 1 . 1 . . . . Sentry 19 | . . . 3 . 4 1 . . . 1 5 3 . 2 . . Hunter 2 | . . . . . 1 . 1 . . . . . . . . . Programmer 8 | . . . . . . . . 1 . . 1 1 . 4 1 . Heavy 3 | . . . . . 1 . . . . . . . . 2 . . Behemoth 1 | . . . . . . . . . . . . . . 1 . . Compactor 1 | . . . . . . . . . 1 . . . . . . . Assembled 20 | . . . . 20 . . . . . . . . . . . . Surgeon 1 | . . . . . . . . . . . 1 . . . . . Thug 1 | . . . . . . . . . . 1 . . . . . . Best Kill Streak 20 | . 3 4 6 20 5 4 5 3 1 4 7 4 4 4 2 3 Combat Bots Only 20 | . 3 3 5 20 5 4 3 3 1 3 5 4 4 4 2 3 Max Kills in Single Turn 4 | . 1 3 3 4 2 2 2 1 1 3 2 2 2 2 1 2 Gunslinging 1 | . . . . . 1 . 1 . . . . 1 1 . . . Exploded 4 | . . 2 3 4 . . . . . 1 . . . 2 . 2 Melee 1 | . . . . . . . . . . 1 . . . 1 . . Uniques/NPCs Destroyed . | . . . . . . . . . . . . . . . . . Combat | -11 -10 -10 -9 -9 -8 -8 -8 -7 -7 -7 -7 -7 -6 -6 -5 -5 -------- Run | Yrd Mat Min Mat Min Mat Gar Mat Fac Was Fac Sto Gar Fac Gar Fac Upp Hostile Shots Fired 1396 | . 76 10 100 71 96 123 70 61 5 63 198 101 22 275 27 98 Missed 449 | . 25 2 32 18 32 27 22 21 1 16 87 34 5 77 7 43 Hits 947 | . 51 8 68 53 64 96 48 40 4 47 111 67 17 198 20 55 Melee 25 | . . . . 11 . . 1 2 4 . . 1 . 6 . . Projectile 922 | . 51 8 68 42 64 96 47 38 . 47 111 66 17 192 20 55 Critical Strikes 34 | . 2 . . 3 1 4 2 3 3 1 1 2 2 9 . 1 Part Disruptions 6 | . . . . . . . . 1 . 2 . . . 3 . . Damage Taken 14444 | . 520 69 834 974 1267 1310 745 650 259 504 1175 871 273 3548 396 1049 Core 2098 | . 89 38 106 216 83 144 107 15 82 106 155 102 . 467 73 315 Absorbed by Shields 305 | . . . . . . . . . . . . 172 50 83 . . Reduced by Siege Mode 152 | . . . . . . . . . . . 68 22 15 47 . . Redirected to Shielding 26 | . . . . 11 2 . . . . . . 13 . . . . Regen/Repaired (Parts) 342 | . . . . . . . 128 . . 65 149 . . . . . Core Remaining (%) 47 | 100 . 49 . 19 . . 39 . . . . 34 . 45 . . Volleys Fired 579 | . 54 2 80 24 54 59 27 45 12 17 41 50 7 73 19 15 Largest 3 | . 2 1 2 2 3 3 3 3 3 3 3 3 3 3 2 3 Hottest 120 | . 120 30 120 46 87 93 71 69 74 120 120 117 84 112 61 91 Shots Fired 1283 | . 108 2 155 40 150 119 76 94 34 41 115 95 21 171 36 26 Gun 848 | . 36 . 142 32 136 27 76 79 34 20 . 54 21 137 35 19 Cannon 361 | . 72 . 10 . 14 92 . . . 20 113 25 . 15 . . Launcher 18 | . . 2 3 8 . . . . . . . . . 2 . 3 Special 56 | . . . . . . . . 15 . 1 2 16 . 17 1 4 Kinetic 1107 | . 36 . 142 32 150 119 76 79 34 20 113 79 21 152 35 19 Thermal 102 | . 72 . 10 . . . . . . 20 . . . . . . Explosive 18 | . . 2 3 8 . . . . . . . . . 2 . 3 Electromagnetic . | . . . . . . . . . . . . . . . . . Robot Hit Streak 36 | . 10 . 13 7 36 20 13 12 10 5 11 9 14 17 12 10 Robot Miss Streak 7 | . 3 . 4 6 2 2 3 2 1 4 7 3 1 6 3 1 Penetration Max 1 | . . . . . . 1 . . . . . 1 . 1 1 . Secondary Targets 19 | . . . . 2 2 . 4 3 . . . 4 2 2 . . Max Gunslinging Chain 2 | . . . . 1 1 . 2 1 . . . 1 1 1 . . Shots Hit Robots 906 | . 68 . 95 21 114 82 63 73 30 27 59 52 18 157 27 20 Core Hits 436 | . 24 5 50 38 39 33 23 25 8 18 28 21 7 98 8 11 Critical Kills 5 | . . . . . . . . . . . . 1 1 . 2 1 Critical Parts Destroyed 6 | . . . 1 . . . . 1 . . . 1 . 2 . 1 Critical Strikes 27 | . . . 1 . . 1 . 1 2 1 6 4 1 6 2 2 Destroy 13 | . . . 1 . . . . 1 2 . . 2 1 2 2 2 Blast 9 | . . . . . . 1 . . . . 6 2 . . . . Sever 5 | . . . . . . . . . . 1 . . . 4 . . Melee Attacks 72 | . . . . . . 10 8 . . 8 . 6 . 40 . . Impact . | . . . . . . . . . . . . . . . . . Slashing 61 | . . . . . . 7 . . . 8 . 6 . 40 . . Piercing . | . . . . . . . . . . . . . . . . . Sneak Attacks 5 | . . . . . . . 2 . . 3 . . . . . . Combat Hostiles . | . . . . . . . . . . . . . . . . . Follow-up Attacks . | . . . . . . . . . . . . . . . . . Damage Inflicted 20787 | . 952 220 1686 1502 1963 2670 855 1011 527 1068 2058 1051 325 3695 684 520 Guns 10357 | . 213 . 1161 245 1633 313 855 942 527 131 . 569 325 2447 684 312 Cannons 6618 | . 736 . 105 . 322 2357 . . . 314 1956 453 . 375 . . Explosions 2645 | . . 215 400 1257 . . . . . 305 95 . . 165 . 208 Melee 1055 | . . . . . . . . . . 318 . 29 . 708 . . Ramming 112 | . 3 5 20 . 8 . . 69 . . 7 . . . . . Kinetic 16003 | . 213 . 1161 245 1955 2670 855 942 527 314 1956 1022 325 2822 684 312 Thermal 1277 | . 736 . 105 . . . . . . 436 . . . . . . Explosive 2340 | . . 215 400 1257 . . . . . . 95 . . 165 . 208 Electromagnetic . | . . . . . . . . . . . . . . . . . Impact . | . . . . . . . . . . . . . . . . . Slashing 1055 | . . . . . . . . . . 318 . 29 . 708 . . Piercing . | . . . . . . . . . . . . . . . . . Highest Corruption 8 | . 1 1 . . . . . 4 4 4 5 5 . 8 1 1 Average Corruption 3 | . 1 1 . . . . . 4 4 4 4 3 . 7 1 1 Corruption Purged 2 | . . . . . . . . . . . . 2 . . . . Corruption Blocked 5 | . . . . . . . . . . 5 . . . . . . Effects 208 | . 10 6 . . . . . 9 9 24 20 49 . 69 3 9 Message Errors 61 | . 1 3 . . . . . 1 4 9 6 9 . 22 2 4 Matter Fused 52 | . 3 1 . . . . . 4 2 2 4 11 . 22 . 3 Heat Flow Errors 21 | . 1 . . . . . . . . 2 3 9 . 5 1 . Energy Discharges 18 | . . 2 . . . . . 1 1 2 3 4 . 5 . . Parts Rejected 1 | . . . . . . . . . . . . 1 . . . . Data Loss (minor) 29 | . 3 . . . . . . 2 1 5 1 9 . 8 . . Data Loss (major) 11 | . 2 . . . . . . . . 2 1 2 . 3 . 1 Misfires 9 | . . . . . . . . . . 2 1 3 . 2 . 1 Alerts 3 | . . . . . . . . . 1 . . 1 . 1 . . Weapon Failures 3 | . . . . . . . . 1 . . 1 . . 1 . . Overload Shots . | . . . . . . . . . . . . . . . . . Overflow Damage 372 | . 16 . 11 83 . 115 . 5 . 69 73 . . . . . Projectiles 190 | . 16 . . . . 115 . . . . 59 . . . . . Explosions 149 | . . . 11 83 . . . . . 41 14 . . . . . Melee 33 | . . . . . . . . 5 . 28 . . . . . . Knockbacks 35 | . . . . . 1 17 . . . 1 13 3 . . . . Impact . | . . . . . . . . . . . . . . . . . Kinetic 33 | . . . . . 1 17 . . . 1 11 3 . . . . Secondary 2 | . . . . . . . . . . . 2 . . . . . Self-Inflicted Damage 205 | . . . 22 105 . . . . . . 45 . . 33 . . Shots 7 | . . . 2 3 . . . . . . 1 . . 1 . . Rammed 12 | . 1 1 2 . . . . 7 . . 1 . . . . . Targets Rammed 13 | . 1 1 2 . 1 . . 7 . . 1 . . . . . Kicked . | . . . . . . . . . . . . . . . . . Crushed 1 | . . . . . 1 . . . . . . . . . . . Highest Temperature 421 | . 243 . 120 . 150 195 33 27 12 273 262 236 24 421 133 26 Average Temperature 59 | . 38 . 62 . 47 53 10 14 5 82 88 43 10 104 28 10 Received Heat Transfer 4365 | . 213 . 282 30 198 630 297 162 9 138 441 226 159 1220 96 264 Effects 7 | . . . . . . . . . . . 1 . . 6 . . Shutdowns 1 | . . . . . . . . . . . . . . 1 . . Energy Bleed 3 | . . . . . . . . . . . 1 . . 2 . . Interference 2 | . . . . . . . . . . . . . . 2 . . Short Circuit 1 | . . . . . . . . . . . . . . 1 . . Siege Activations 11 | . . . . . . . . . . 1 3 4 1 2 . . Total Turns 165 | . . . . . . . . . . 7 43 58 18 39 . . Longest Duration 35 | . . . . . . . . . . 7 32 35 18 31 . . Martial Activations . | . . . . . . . . . . . . . . . . . Shielding Activations . | . . . . . . . . . . . . . . . . . Robots Disrupted . | . . . . . . . . . . . . . . . . . Combat Hostiles . | . . . . . . . . . . . . . . . . . Robots Corrupted . | . . . . . . . . . . . . . . . . . Combat Hostiles . | . . . . . . . . . . . . . . . . . Parts Fried . | . . . . . . . . . . . . . . . . . Impact Corruptions 1 | . . . . . . . . 1 . . . . . . . . Robots Melted . | . . . . . . . . . . . . . . . . . Combat Hostiles . | . . . . . . . . . . . . . . . . . Parts Melted 3 | . 1 . . . . . . . . 1 . . . . . 1 Heat Transferred 2446 | . 1554 . 222 . . . . . . 670 . . . . . . Parts Sabotaged . | . . . . . . . . . . . . . . . . . Parts Stolen . | . . . . . . . . . . . . . . . . . Parts Stripped . | . . . . . . . . . . . . . . . . . Power Chain Reactions . | . . . . . . . . . . . . . . . . . Alert | -11 -10 -10 -9 -9 -8 -8 -8 -7 -7 -7 -7 -7 -6 -6 -5 -5 ------- Run | Yrd Mat Min Mat Min Mat Gar Mat Fac Was Fac Sto Gar Fac Gar Fac Upp Maximum Alert Level 4 | . . . . . 1 3 2 1 . 2 2 4 3 4 3 . Low Security (%) 49 | 100 100 100 100 100 98 10 . 98 100 38 11 . . . . . Level 1 10 | . . . . . 1 19 72 1 . 23 50 14 . . . . Level 2 20 | . . . . . . 39 27 . . 37 38 53 . 27 10 . Level 3 16 | . . . . . . 30 . . . . . 21 100 53 89 . Level 4 4 | . . . . . . . . . . . . 11 . 18 . . Level 5 . | . . . . . . . . . . . . . . . . . High Security . | . . . . . . . . . . . . . . . . . Max Security . | . . . . . . . . . . . . . . . . . Peak Influence 1503 | . 124 82 180 42 207 813 481 207 50 543 468 1359 835 1503 788 . Initial 788 | . . . . 17 3 49 393 207 50 . 219 293 713 556 788 . Average 369 | . 39 10 85 5 98 510 385 115 6 299 333 679 792 912 735 . Influence Increases 8398 | . 454 82 568 81 512 829 448 550 27 934 715 1276 142 1437 243 100 Destroy 0b10 Robot/C 4260 | . 300 60 380 40 340 480 280 360 . 400 380 380 100 580 80 100 Destroy 0b10 Robot/NC 215 | . 15 5 45 . 30 . 20 10 . 50 30 . . . 10 . Destroy Leader 722 | . 54 10 102 10 104 20 62 60 . 86 114 20 20 40 20 . Allied During Kill 524 | . . . 4 . . 1 23 57 . 321 61 21 7 24 5 . Successful Hack 51 | . 9 . . . . . . 18 . . 24 . . . . . Select Force Hacks 30 | . . . . . . . 30 . . . . . . . . . Disable Machine 360 | . 45 . . . . 15 15 . . 60 75 75 15 45 15 . Anti-Garrison Action 1650 | . . . . . . 250 . . . . . 750 . 650 . . Destroy Structure 256 | . 1 7 22 31 8 33 3 . 27 17 31 30 . 38 8 . Lose Combat Pursuer 330 | . 30 . 15 . 30 30 15 45 . . . . . 60 105 . Influence Decreases 8311 | . 454 82 523 116 446 97 799 864 170 452 745 369 706 729 1033 726 Entered New Map 3106 | . . . . 28 7 27 415 250 93 . 263 159 646 239 715 264 Time Decay 3619 | . 446 82 473 52 379 . 294 494 35 392 342 . 50 . 238 342 Lost Part 704 | . 8 . 30 36 60 70 30 20 . . 50 30 10 260 10 90 Lost Ally 732 | . . . 20 . . . 60 100 42 60 90 180 . 80 70 30 Purge Threat 150 | . . . . . . . . . . . . . . 150 . . Squads Dispatched 27 | . 1 . 3 . 5 . 4 4 . 3 4 . 2 . 1 . Investigation 5 | . . . 1 . 3 . 1 . . . . . . . . . Extermination 5 | . . . . . . . . 2 . 2 1 . . . . . Reinforcement 12 | . 1 . 2 . 2 . 1 1 . 1 2 . 2 . . . Assault 1 | . . . . . . . . . . . . . . . 1 . Garrison 4 | . . . . . . . 2 1 . . 1 . . . . . Intercept . | . . . . . . . . . . . . . . . . . Searches Triggered . | . . . . . . . . . . . . . . . . . Construction Impeded 1 | . . . 1 . . . . . . . . . . . . . Haulers Reinforced . | . . . . . . . . . . . . . . . . . Active Scanning Responses . | . . . . . . . . . . . . . . . . . Cargo Convoy Interrupts . | . . . . . . . . . . . . . . . . . Stealth | -11 -10 -10 -9 -9 -8 -8 -8 -7 -7 -7 -7 -7 -6 -6 -5 -5 --------- Run | Yrd Mat Min Mat Min Mat Gar Mat Fac Was Fac Sto Gar Fac Gar Fac Upp Distress Signals 19 | . 2 . 3 . 5 . 3 2 . 1 3 . . . . . Communications Jammed 147 | . . . . . . . 64 10 . 3 68 . . . 2 . Distress Signals 144 | . . . . . . . 64 7 . 3 68 . . . 2 . Times Spotted 350 | . 36 3 31 22 21 24 37 30 6 20 28 30 6 38 11 7 Peak Tracking Total 10 | . 4 3 7 10 6 6 8 6 3 4 5 4 5 4 5 4 Tactical Retreats 19 | . 2 . 1 . 2 2 1 2 . . . . . 3 6 . Traps | -11 -10 -10 -9 -9 -8 -8 -8 -7 -7 -7 -7 -7 -6 -6 -5 -5 ------- Run | Yrd Mat Min Mat Min Mat Gar Mat Fac Was Fac Sto Gar Fac Gar Fac Upp Traps Triggered 30 | . 1 . 1 . 1 9 . 2 . . . 7 . 9 . . Indirectly . | . . . . . . . . . . . . . . . . . Trap Hack Attempts . | . . . . . . . . . . . . . . . . . Triggered . | . . . . . . . . . . . . . . . . . Disarmed . | . . . . . . . . . . . . . . . . . Reprogrammed . | . . . . . . . . . . . . . . . . . Reused . | . . . . . . . . . . . . . . . . . Traps Extracted . | . . . . . . . . . . . . . . . . . Installed . | . . . . . . . . . . . . . . . . . Triggered . | . . . . . . . . . . . . . . . . . Most Traps Carried 1 | . . . . . . . . . . . . 1 1 1 1 1 Machines | -11 -10 -10 -9 -9 -8 -8 -8 -7 -7 -7 -7 -7 -6 -6 -5 -5 ---------- Run | Yrd Mat Min Mat Min Mat Gar Mat Fac Was Fac Sto Gar Fac Gar Fac Upp Machines Disabled 34 | . 3 . . . . 5 1 . . 4 5 8 1 6 1 . Max in Single Turn 4 | . 1 . . . . 1 1 . . 4 1 1 . 1 1 . Garrison Access 1 | . . . . . . . . 1 . . . . . . . . Garrison Relay 10 | . . . . . . 3 . . . . . 4 . 3 . . Machines Repaired . | . . . . . . . . . . . . . . . . . Machines Dismantled . | . . . . . . . . . . . . . . . . . Machines Sabotaged . | . . . . . . . . . . . . . . . . . Overloaded Fab Kills . | . . . . . . . . . . . . . . . . . Hacking | -11 -10 -10 -9 -9 -8 -8 -8 -7 -7 -7 -7 -7 -6 -6 -5 -5 --------- Run | Yrd Mat Min Mat Min Mat Gar Mat Fac Was Fac Sto Gar Fac Gar Fac Upp Machines Accessed 24 | . 2 . 2 . 4 . 2 3 . 3 4 1 1 1 1 . Terminals 7 | . 2 . . . 1 . . 1 . . 1 1 . 1 . . Fabricators 1 | . . . . . . . . . . 1 . . . . . . Repair Stations 4 | . . . . . 2 . . . . . 2 . . . . . Recycling Units 1 | . . . 1 . . . . . . . . . . . . . Scanalyzers 6 | . . . 1 . . . 1 1 . 2 . . . . 1 . Garrison Access 5 | . . . . . 1 . 1 1 . . 1 . 1 . . . Total Hacks 46 | . 4 . 4 . 5 . 4 13 . 5 4 3 1 1 2 . Successful 32 | . 3 . 2 . 2 . 3 11 . 4 3 . 1 1 2 . Failed 12 | . 1 . 1 . 3 . . 2 . 1 1 3 . . . . Catastrophic 3 | . . . . . . . . . . 1 1 1 . . . . Database Lockouts 2 | . . . 1 . . . 1 . . . . . . . . . Manual 9 | . 3 . . . 1 . 1 1 . 1 2 . . . . . Terminals 11 | . 4 . . . 1 . . 1 . . 1 3 . 1 . . Fabricators 2 | . . . . . . . . . . 2 . . . . . . Repair Stations 5 | . . . . . 3 . . . . . 2 . . . . . Recycling Units 2 | . . . 2 . . . . . . . . . . . . . Scanalyzers 20 | . . . 2 . . . 2 11 . 3 . . . . 2 . Garrison Access 6 | . . . . . 1 . 2 1 . . 1 . 1 . . . Terminal Hacks 4 | . 2 . . . . . . . . . 1 . . 1 . . Open Door 2 | . . . . . . . . . . . 1 . . 1 . . Dispatch Records 1 | . 1 . . . . . . . . . . . . . . . Transport Status 1 | . 1 . . . . . . . . . . . . . . . Fabricator Hacks 1 | . . . . . . . . . . 1 . . . . . . Network Status 1 | . . . . . . . . . . 1 . . . . . . Repair Station Hacks 1 | . . . . . 1 . . . . . . . . . . . Scan Component 1 | . . . . . 1 . . . . . . . . . . . Recycling Unit Hacks 1 | . . . 1 . . . . . . . . . . . . . Retrieve Components 1 | . . . 1 . . . . . . . . . . . . . Scanalyzer 16 | . . . 1 . . . 1 9 . 3 . . . . 2 . Retrieve Study 16 | . . . 1 . . . 1 9 . 3 . . . . 2 . Garrison Access Hacks 5 | . . . . . 1 . 1 1 . . 1 . 1 . . . Unlock Access 3 | . . . . . 1 . . . . . 1 . 1 . . . Seal Access 1 | . . . . . . . . 1 . . . . . . . . Coupler Status 1 | . . . . . . . 1 . . . . . . . . . Unauthorized Hacks 4 | . 1 . . . . . 1 1 . . 1 . . . . . Terminals 2 | . 1 . . . . . . 1 . . . . . . . . Botnet 2 | . 1 . . . . . . 1 . . . . . . . . Fabricators . | . . . . . . . . . . . . . . . . . Repair Stations 1 | . . . . . . . . . . . 1 . . . . . Mechanics 1 | . . . . . . . . . . . 1 . . . . . Recycling Units . | . . . . . . . . . . . . . . . . . Scanalyzers . | . . . . . . . . . . . . . . . . . Garrison Access 1 | . . . . . . . 1 . . . . . . . . . Eject 1 | . . . . . . . 1 . . . . . . . . . Data Cores Recovered . | . . . . . . . . . . . . . . . . . Used . | . . . . . . . . . . . . . . . . . Hacking Detections 12 | . 1 . . . 4 . . 2 . 2 1 1 . . 1 . Full Trace Events . | . . . . . . . . . . . . . . . . . Feedback Events . | . . . . . . . . . . . . . . . . . Feedback Blocked . | . . . . . . . . . . . . . . . . . Robot Schematics Acquired . | . . . . . . . . . . . . . . . . . Robots Built . | . . . . . . . . . . . . . . . . . Authchips . | . . . . . . . . . . . . . . . . . Time . | . . . . . . . . . . . . . . . . . Total Robot Build Rating . | . . . . . . . . . . . . . . . . . Part Schematics Acquired . | . . . . . . . . . . . . . . . . . Parts Built . | . . . . . . . . . . . . . . . . . Authchips . | . . . . . . . . . . . . . . . . . Time . | . . . . . . . . . . . . . . . . . Total Part Build Rating . | . . . . . . . . . . . . . . . . . Part Studies Acquired 14 | . . . . . . . 1 9 . 2 . . . . 2 . Parts Repaired . | . . . . . . . . . . . . . . . . . Time . | . . . . . . . . . . . . . . . . . Parts Recycled . | . . . . . . . . . . . . . . . . . Recycled Matter . | . . . . . . . . . . . . . . . . . Retrieved Matter . | . . . . . . . . . . . . . . . . . Retrieved Components 10 | . . . 10 . . . . . . . . . . . . . Parts Scanalyzed . | . . . . . . . . . . . . . . . . . Part Schematics Acquired . | . . . . . . . . . . . . . . . . . Parts Damaged . | . . . . . . . . . . . . . . . . . Bothacking | -11 -10 -10 -9 -9 -8 -8 -8 -7 -7 -7 -7 -7 -6 -6 -5 -5 ------------ Run | Yrd Mat Min Mat Min Mat Gar Mat Fac Was Fac Sto Gar Fac Gar Fac Upp Used RIF Installer 3 | . . . . . . 2 . . . . . . . 1 . . Signal Jammer 1 | . . . . . . 1 . . . . . . . . . . Watcher Feeds 1 | . . . . . . . . . . . . . . 1 . . Robots Hacked 44 | . . . . . . 1 7 9 . 1 1 14 . 8 1 2 Non-combat 8 | . . . . . . . 2 1 . 1 1 . . 1 1 1 Combat 36 | . . . . . . 1 5 8 . . . 14 . 7 . 1 Robot Hacks Applied 47 | . . . . . . 1 7 10 . 1 1 14 . 10 1 2 drop_inventory 1 | . . . . . . . . 1 . . . . . . . . locate_stockpiles 1 | . . . . . . . . 1 . . . . . . . . purge_threat 1 | . . . . . . . . . . . . . . 1 . . link_fov 1 | . . . . . . . . . . . . . . . 1 . scatter_targeting 2 | . . . . . . . . . . . . . . 2 . . disable_weapons 1 | . . . . . . . . 1 . . . . . . . . reboot_system 2 | . . . . . . . . . . . . 1 . 1 . . overwrite_iff 7 | . . . . . . . 1 2 . . . 2 . 1 . 1 streamctrl_high 1 | . . . . . . . 1 . . . . . . . . . formatsys_low 6 | . . . . . . . 2 . . 1 1 . . 1 . 1 formatsys_high 24 | . . . . . . 1 3 5 . . . 11 . 4 . . Relay Couplers Released 45 | . . . . . . 10 4 . . . . 20 . 11 . . Ejected 4 | . . . . . . . 4 . . . . . . . . . Machine Destruction 41 | . . . . . . 10 . . . . . 20 . 11 . . Attached 29 | . . . . . . 1 5 4 1 1 . 8 . 8 . 1 Fabnet Peak Effective % . | . . . . . . . . . . . . . . . . . Robots Rewired 3 | . . . . . . . . . . . . . . 3 . . Allies Hacked 1 | . . . . . . . . . . 1 . . . . . . Hacks Repelled . | . . . . . . . . . . . . . . . . . Allies | -11 -10 -10 -9 -9 -8 -8 -8 -7 -7 -7 -7 -7 -6 -6 -5 -5 -------- Run | Yrd Mat Min Mat Min Mat Gar Mat Fac Was Fac Sto Gar Fac Gar Fac Upp Total Allies 64 | . . 3 . . . 1 7 7 20 1 1 13 . 9 . 2 Largest Group 19 | . . 3 3 . . 1 3 5 19 10 6 4 2 5 4 1 Highest-Rated Group 465 | . . 40 40 . . 16 59 105 465 276 144 93 32 190 144 30 Highest-Rated Ally 51 | . . 16 16 . . 16 23 32 35 31 31 32 16 51 51 30 Total Orders 11 | . . . . . . . 1 2 . . . 3 . 2 . 3 STAY 4 | . . . . . . . . 1 . . . 2 . 1 . . ROAM 1 | . . . . . . . . . . . . . . . . 1 FOLLOW 3 | . . . . . . . . 1 . . . 1 . 1 . . AID 1 | . . . . . . . 1 . . . . . . . . . DROP 1 | . . . . . . . . . . . . . . . . 1 EXPLORE 1 | . . . . . . . . . . . . . . . . 1 Ally Attacks 495 | . . . 11 . . 1 44 39 117 144 36 48 10 30 14 1 Total Damage 9924 | . . . 164 . . 15 800 790 3011 2654 550 799 203 681 257 . Kills 61 | . . . 1 . . 1 7 10 10 17 5 4 2 3 1 . Allies Corrupted . | . . . . . . . . . . . . . . . . . Allies Melted 1 | . . . . . . . . . . . . . . . 1 . Intel | -11 -10 -10 -9 -9 -8 -8 -8 -7 -7 -7 -7 -7 -6 -6 -5 -5 ------- Run | Yrd Mat Min Mat Min Mat Gar Mat Fac Was Fac Sto Gar Fac Gar Fac Upp Active Infowar (turns) 1266 | . . . . . . . . . . . . . . 1 490 775 Optics 1 | . . . . . . . . . . . . . . 1 . . Jamming 1265 | . . . . . . . . . . . . . . . 490 775 Robot Analysis Total . | . . . . . . . . . . . . . . . . . Derelict Logs Recovered 2 | . . 1 . 1 . . . . . . . . . . . . Drone Launches 2 | . . . . . . . . . . . . . . . . 2 Drone Recoveries 1 | . . . . . . . . . . . . . . . . 1 Exploration | -11 -10 -10 -9 -9 -8 -8 -8 -7 -7 -7 -7 -7 -6 -6 -5 -5 ------------- Run | Yrd Mat Min Mat Min Mat Gar Mat Fac Was Fac Sto Gar Fac Gar Fac Upp Turns Passed 19010 | 115 2120 592 1616 536 1621 1717 644 1308 380 1128 760 2665 116 2402 515 775 Spaces Moved 7142 | 72 689 182 505 190 574 607 199 502 327 632 315 1079 50 825 166 228 Core 383 | 17 . . . . . . . . 315 37 . . . 12 . 2 Treads 6759 | 55 689 182 505 190 574 607 199 502 12 595 315 1079 50 813 166 226 Legs . | . . . . . . . . . . . . . . . . . Wheels . | . . . . . . . . . . . . . . . . . Hover . | . . . . . . . . . . . . . . . . . Flight . | . . . . . . . . . . . . . . . . . Fastest Speed 50 | 50 160 320 240 240 240 240 240 203 50 100 160 220 160 160 206 206 Average Speed 225 | 146 274 320 261 240 240 240 243 219 88 156 178 220 160 233 265 299 Slowest Speed 2050 | 160 320 320 480 240 240 240 325 243 210 160 240 220 160 1950 290 2050 Overloaded Moves . | . . . . . . . . . . . . . . . . . Propulsion Burnouts . | . . . . . . . . . . . . . . . . . Robots Hopped 2 | . . . . . . . . . 2 . . . . . . . Potential Cave-ins . | . . . . . . . . . . . . . . . . . Cave-ins Triggered . | . . . . . . . . . . . . . . . . . Exploration Rate (%) 44 | 3 93 46 44 45 43 61 29 16 84 24 57 70 3 80 11 46 Regions Visited 16 Branch Regions 4 Pre-discovered Areas . | . . . . . . . . . . . . . . . . . Known Exits Taken 3 | . . . . . 1 . . . . . 1 . 1 . . . Unknown Exits Taken 8 | 1 1 1 1 1 . . 1 . . 1 . . . . 1 . Scrap Searched 3 | . . . . 1 . . . . . . . . . . . 2 Spaces Dug 1 | . . . . . . 1 . . . . . . . . . . Terrain Destroyed 169 | . . 9 21 39 7 9 . . 1 19 31 . . 5 . 28 Melee 1 | . . . . . . 1 . . . . . . . . . . Projectile 53 | . . . . . 7 8 . . 1 3 31 . . 1 . 2 AOE 115 | . . 9 21 39 . . . . . 16 . . . 4 . 26 Terrain Rammed . | . . . . . . . . . . . . . . . . . Walls Destroyed . | . . . . . . . . . . . . . . . . . Machines Disabled . | . . . . . . . . . . . . . . . . . Actions | -11 -10 -10 -9 -9 -8 -8 -8 -7 -7 -7 -7 -7 -6 -6 -5 -5 --------- Run | Yrd Mat Min Mat Min Mat Gar Mat Fac Was Fac Sto Gar Fac Gar Fac Upp Total 8843 | 79 819 188 640 228 722 730 297 629 391 725 425 1287 69 1112 206 296 Wait 554 | . 59 . 21 . 42 11 27 33 45 46 51 76 9 78 16 40 Move 7120 | 71 688 181 504 189 573 605 198 502 322 631 314 1077 49 823 165 228 Hop 2 | . . . . . . . . . 2 . . . . . . . Pick Up 153 | 2 11 1 18 2 22 11 9 13 1 8 10 21 1 20 2 1 Fast Attach 47 | 6 . . 3 3 2 . 1 4 2 3 1 8 1 11 1 1 Attach 87 | . 2 1 1 8 10 8 6 6 3 4 3 9 1 21 . 4 Detach 5 | . . . . . 2 . . . . . . 2 . . . 1 Swap 78 | . 3 2 6 2 5 7 12 7 . 2 3 16 1 8 2 2 Drop 61 | . 1 . 5 . 11 5 5 10 4 4 1 11 . 3 1 . Fire 579 | . 54 2 80 24 54 59 27 45 12 17 41 50 7 73 19 15 Melee 72 | . . . . . . 10 8 . . 8 . 6 . 40 . . Ram . | . . . . . . . . . . . . . . . . . Kick . | . . . . . . . . . . . . . . . . . Crush 13 | . 1 1 2 . 1 . . 7 . . 1 . . . . . Escape Stasis 40 | . . . . . . 14 . . . . . 10 . 16 . . Rewire 32 | . . . . . . . 4 2 . 2 . 1 . 19 . 4 Trap . | . . . . . . . . . . . . . . . . . Miscellaneous . | . . . . . . . . . . . . . . . . . Route ------- -11/Scrapyard -10/Materials (discovered 4 exits: *Mat x3 / [*Min]) -10/Mines (discovered 3 exits: *Mat x2 / *Sub) -9/Materials (discovered 2 exits: [*Min x2]) -9/Mines -8/Materials -8/Garrison (discovered 2 exits: *Mat x2) -8/Materials -7/Factory -7/Waste -7/Factory -7/Storage -7/Garrison (discovered 3 exits: *Fac x3) -6/Factory -6/Garrison (discovered 3 exits: *Fac x3) -5/Factory -5/Upper Caves History --------- Turn | Location | Event 16 | -11/Scrapyard | Discovered new exit (range 16) 116 | -11/Scrapyard | Entered Materials 307 | -10/Materials | Build established: Mutant 449 | -10/Materials | Discovered new exit (range 6) 509 | -10/Materials | Discovered new exit (range 15) 1405 | -10/Materials | Discovered new exit (range 3) 2085 | -10/Materials | Discovered new exit (range 15) 2236 | -10/Materials | Entered Mines 2271 | -10/Mines | Core integrity fell below 50% 2504 | -10/Mines | Assisted by bots powering up and referring to "LRC-V3" 2564 | -10/Mines | Identified exit to Subcaves 2569 | -10/Mines | Received a Rocket Launcher from a helpful Derelict 2623 | -10/Mines | Discovered new exit (range 14) 2780 | -10/Mines | Discovered new exit (range 5) 2828 | -10/Mines | Entered Materials 2828 | -9/Materials | Accompanied by 3 allies 2828 | -9/Materials | Evolved 2 slots: Propulsion x1, Utility x1 3025 | -9/Materials | Lost 3 allies 3025 | -9/Materials | Discovered new exit (range 12) 3557 | -9/Materials | Build established: Scavenger-Mutant 3636 | -9/Materials | Discovered new exit (range 15) 4365 | -9/Materials | Central database locked down 4444 | -9/Materials | Entered Mines 4445 | -9/Mines | Assembled infested the area 4450 | -9/Mines | Assisted by a Guerilla fighting off Assembled 4464 | -9/Mines | Met a Derelict bent on vengeance 4481 | -9/Mines | Core integrity fell below 50% 4515 | -9/Mines | Lost 7 parts (1p3n1u2w) 4536 | -9/Mines | Destroyed 20 combat bots 4845 | -9/Mines | Learned Materials stockpile data 4850 | -9/Mines | Discovered new exit (range 8) 4882 | -9/Mines | Core integrity fell below 20% 4980 | -9/Mines | Entered Materials 4980 | -8/Materials | Evolved 2 slots: Utility x1, Weapon x1 5526 | -8/Materials | Build established: Scavenger-Gunner 5750 | -8/Materials | Lost 5 parts (4n1u) 6599 | -8/Materials | Identified exit to Garrison 6601 | -8/Materials | Entered Garrison 6713 | -8/Garrison | Triggered checkpoint 6781 | -8/Garrison | Garrison Relay disabled 6949 | -8/Garrison | Triggered checkpoint 7085 | -8/Garrison | Installed Relay Interface Framework 7141 | -8/Garrison | Triggered checkpoint 7233 | -8/Garrison | Discovered new exit (range 10) 7259 | -8/Garrison | Triggered checkpoint 7310 | -8/Garrison | Garrison Relay disabled 7567 | -8/Garrison | Triggered checkpoint 7597 | -8/Garrison | Triggered checkpoint 7621 | -8/Garrison | Build established: Bothacker-Gunner 7625 | -8/Garrison | Lost 3 parts (1u2w) 7953 | -8/Garrison | Expanded RIF knowledge: Signal Jamming 7998 | -8/Garrison | Build established: Bothacker-Mutant 8119 | -8/Garrison | Triggered checkpoint 8167 | -8/Garrison | Garrison Relay disabled 8294 | -8/Garrison | Discovered new exit (range 10) 8318 | -8/Garrison | Entered Materials 8548 | -8/Materials | Central database locked down 8635 | -8/Materials | Core integrity fell below 50% 8796 | -8/Materials | Garrison activated, responded to threat 8836 | -8/Materials | Discovered new exit (range 16) 8962 | -8/Materials | Entered Factory 8962 | -7/Factory | Accompanied by 2 allies 8962 | -7/Factory | Evolved 2 slots: Utility x2 8988 | -7/Factory | Build established: Bothacker-Gunner 9370 | -7/Factory | Discovered new exit (range 7) 10076 | -7/Factory | Garrison activated, responded to threat 10190 | -7/Factory | Found Prototype Launcher 10270 | -7/Factory | Manually triggered Chute Trap 10270 | -7/Factory | Sucked down chute 10270 | -7/Factory | Entered Waste 10271 | -7/Waste | Met a frightened Derelict 10300 | -7/Waste | Spotted C-40 Crusher 10303 | -7/Waste | Spotted C-40 Crusher 10314 | -7/Waste | Destroyed C-40 Crusher 10335 | -7/Waste | Crushed by Compactor (1 part destroyed, 2 dropped) 10338 | -7/Waste | Crushed by Compactor (1 part destroyed, 2 dropped) 10341 | -7/Waste | Crushed by Compactor (1 part destroyed, 1 dropped) 10342 | -7/Waste | Identified Rocket Array 10344 | -7/Waste | Crushed by Compactor (1 part destroyed, 1 dropped) 10345 | -7/Waste | Spotted C-40 Crusher 10363 | -7/Waste | Spotted C-40 Crusher 10375 | -7/Waste | Warlord forces began an assault 10375 | -7/Waste | Lost 5 parts (1p2n2w) 10497 | -7/Waste | Spotted C-40 Crusher 10513 | -7/Waste | Spotted C-40 Crusher 10513 | -7/Waste | Allies destroyed C-40 Crusher 10525 | -7/Waste | Allies destroyed C-40 Crusher 10551 | -7/Waste | Lost 6 allies 10605 | -7/Waste | Discovered new exit (range 10) 10650 | -7/Waste | Entered Factory 10650 | -7/Factory | Accompanied by 10 allies 10651 | -7/Factory | Build established: Mutant 11089 | -7/Factory | P-60 Hacker assimilated allied Q6-7Y2(g) 11711 | -7/Factory | Build established: Gunner 11742 | -7/Factory | Discovered new exit (range 12) 11778 | -7/Factory | Entered Storage 11778 | -7/Storage | Accompanied by 6 allies 12285 | -7/Storage | Lost 4 allies 12493 | -7/Storage | Garrison activated, responded to threat 12502 | -7/Storage | Core integrity fell below 50% 12536 | -7/Storage | Identified exit to Garrison 12538 | -7/Storage | Entered Garrison 12688 | -7/Garrison | Triggered checkpoint 12795 | -7/Garrison | Garrison Relay disabled 12888 | -7/Garrison | Triggered checkpoint 12918 | -7/Garrison | Triggered checkpoint 13117 | -7/Garrison | Build established: Bothacker-Tank 13146 | -7/Garrison | Spotted B-75 Beast 13146 | -7/Garrison | Spotted B-75 Beast 13308 | -7/Garrison | Triggered checkpoint 13492 | -7/Garrison | Discovered new exit (range 10) 13550 | -7/Garrison | Triggered checkpoint 13838 | -7/Garrison | Triggered checkpoint 13986 | -7/Garrison | Triggered checkpoint 14331 | -7/Garrison | Lost 4 allies 14390 | -7/Garrison | Discovered new exit (range 14) 14500 | -7/Garrison | Triggered checkpoint 14521 | -7/Garrison | Garrison Relay disabled 14872 | -7/Garrison | Triggered checkpoint 14905 | -7/Garrison | Garrison Relay disabled 15094 | -7/Garrison | Discovered new exit (range 10) 15203 | -7/Garrison | Entered Factory 15203 | -6/Factory | Accompanied by 2 allies 15203 | -6/Factory | Evolved 2 slots: Propulsion x1, Utility x1 15285 | -6/Factory | Identified exit to Garrison 15319 | -6/Factory | Entered Garrison 15319 | -6/Garrison | Accompanied by 1 ally 15451 | -6/Garrison | Spotted B-75 Beast 15459 | -6/Garrison | Triggered checkpoint 15495 | -6/Garrison | Triggered checkpoint 15498 | -6/Garrison | Destroyed B-75 Beast 15550 | -6/Garrison | Lost 10 parts (1p3n2u4w) 15703 | -6/Garrison | Expanded RIF knowledge: Watcher Feeds 15835 | -6/Garrison | Build established: Bothacker-Mutant 15839 | -6/Garrison | Heavy support dispatched to Factory 15877 | -6/Garrison | Triggered checkpoint 15897 | -6/Garrison | Triggered checkpoint 16102 | -6/Garrison | Discovered new exit (range 11) 16129 | -6/Garrison | Triggered checkpoint 16175 | -6/Garrison | Build established: Bothacker-Gunner 16178 | -6/Garrison | Garrison Relay disabled 16555 | -6/Garrison | Triggered checkpoint 16598 | -6/Garrison | Heavy support dispatched to Factory 16681 | -6/Garrison | Lost 8 parts (1p2n5w) 16717 | -6/Garrison | H-XX Assembler disabled 16841 | -6/Garrison | Garrison Relay disabled 16922 | -6/Garrison | Build established: Bothacker-Mutant 17030 | -6/Garrison | Lost 3 parts (3n) 17049 | -6/Garrison | Discovered new exit (range 9) 17209 | -6/Garrison | Core integrity fell below 50% 17305 | -6/Garrison | Discovered new exit (range 10) 17327 | -6/Garrison | Triggered checkpoint 17560 | -6/Garrison | Garrison Relay disabled 17721 | -6/Garrison | Entered Factory 17721 | -5/Factory | Accompanied by 4 allies 17721 | -5/Factory | Evolved 2 slots: Utility x2 17979 | -5/Factory | Lost 4 allies 18021 | -5/Factory | First assault squad dispatched 18096 | -5/Factory | Discovered new exit (range 22) 18221 | -5/Factory | Build established: Bothacker-Gunner 18236 | -5/Factory | Entered Upper Caves 18818 | -5/Upper Caves | Spotted B-75 Beast 18899 | -5/Upper Caves | Lost 3 parts (2n1w) 19011 | -5/Upper Caves | Self-destructed Last Messages --------------- 18865_ Arm. Treads+ destroyed. 18868_ Lgt. Treads+ destroyed. 18903_ PSS=FIHQ5=/V YG81J3BYY9H6NIMJL 18935_ System corrupted: Matter fused (-9). 18942_ Attempting to rewire 1K-IH3(t). 18942_ 1K-IH3(t) is broken beyond repair. 18943_ Attempting to rewire 1K-IH3(t). 18943_ 1K-IH3(t) is broken beyond repair. 18944_ Attempting to rewire 1K-IH3(t). 18944_ 1K-IH3(t) is broken beyond repair. 18948_ Drone released from Drone Bay. 18953_ System corrupted: Matter fused (-9). 18953_ Drone retrieved by Drone Bay (repair cost: 2). 18968_ Arm. Treads+ destroyed. 18985_ Knocked back. 18999_ O0F%I55KHDG X#JYS,FPIZXY 19001_ Drone Bay destroyed. 19002_ >> Lost connection to Drone. 19006_ Imp. Remote Datajack destroyed. Map ----- +----------------------------------------------------+ | ?????????????????????????????????????????????????? | | ?????????????????????????????????????????????????? | | ?????????????????????????????????????????????????? | | ?????????????????????????????????????????????????# | | ????????????????????????????????????????????????## | | ????????????????????????????????????????????????# | | ????????????????????????????????????????????????# | | ????????????????????????????????????????????????# | | ????????????????????????????????????????????????## | | ?????????????????????????????????????????????????# | | ?????????????????????????????????????????????????? | | ?????????????????????????????????????????????????? | | ?????????????????????????????????????????????????? | | ?????????????????????????????????????????????????? | | ?????????????????????????????????????????????????? | | ?????????????????????????????????????????????????? | | ?????????????????????????????????????????????????? | | ?????????????????????????????????????????????????? | | ???????????????????###???????????????????????????? | | ???????????????????# #?###???????????????????????? | | ??????????????????##;### #???????????????????????? | | ?????????????????## ;#;#?????????????????????### | | ?????????????????# %;; #?????????????????????# # | | ??????????????####n ##########?????????#### | | ??????????????# #; %# #?????????? | | ??????????????# ##; @ #???????????????# | | ??????????????# # # % #?????????#####?# | | ??????????????# # % #?????????# ## ^ | | ??????????????##?###; #?????# | | ???????????????????##; ##??##?????## # # | | ????????????????????##; ####???# #????# ## | | ?????????????????????#;BB###??????# ##??# # ## | | ?????????????????????##BB#????????# ##?# # | | ??????????????????????# #????????# ### !% | | ??????????????????????# #?????????# # % # | | ??????????????????????# #?????????# ### ## | | ???????????? ?????## "#????????# #?# ## | | ?????????????# ### #???????## ### #" | | ?????????????# ##?###### #?# ##" | | ?????????????# # ### ## ####% | | ????????????????## % % | | ?????????????# | | ?????????????# %* | | ???????????? ## " "" """""" | | ??????????? ??# """""" """""" | | ???????????? #???# """""" """""" | | ???????????????? # """""" """""" | | ??????????????? ### ?? | | ??????????????# ### # #?# """""" """"?? | | ?????????????? ??# ## ?# """""" """???? | +----------------------------------------------------+ Best States ------------- Heat Dissipation 56 Energy Generation 25 Energy Capacity 350 Matter Stores 300 Matter Capacity 300 Sight Range 16 Terrain Scan Density 10 Jamming Range 14 Corruption Block 10 Armor Coverage 225 Core Shielding 20 Evasion (%) 50 Targeting Accuracy 16 Core Analysis 9 Recoil Reduction 7 Kinecelleration 30 Relay Coupler Types 6 Relay Coupler Value 123 Item Schematics ----------------- None Robot Schematics ------------------ None Fabricated ------------ Nothing Repaired ---------- Nothing Studied --------- Hvy. Assault Rifle | -8/Materials | Hacked Remote Datajack | -7/Factory | Hacked Lgt. Treads | -7/Factory | Hacked Arm. Treads | -7/Factory | Hacked Med. Treads | -7/Factory | Hacked Katana | -7/Factory | Hacked Flak Gun | -7/Factory | Hacked Imp. Datajack | -7/Factory | Hacked Rnf. Deuterium Engine | -7/Factory | Hacked Imp. Light Cannon | -7/Factory | Hacked Mni. Grenade Launcher | -7/Factory | Hacked Gauss Cannon | -7/Factory | Hacked Gauss Rifle | -5/Factory | Hacked KE Penetrator | -5/Factory | Hacked Alien Tech Used ----------------- None Achievements -------------- Versatile Wheee! Challenges ------------ None Game ------ Seed PlatingBehemothDrillbomb Manual? 0 Play Time 01:59:08 Cumulative 281.4 hours Start 2026.09.16 @ 13:55:16 End 2026.09.16 @ 22:04:19 Sessions 4 Manual Loads 0 Difficulty Rogue Special Mode None Game No. 306 Rogue 306 Adventurer 0 Explorer 0 Win Type - Total 3 Types 3/0/0/0/0/0/0/0/0/0 Lore% 33 Gallery% 57 Achievement% 40 Wizard Run 0 Options --------- Layout 1 ASCII 0 Keyboard 0 Movement Numpad Keybinds 0 Fullscreen 2 Font 24/Smallcaps Map View 50x35 Zoom Use 0% Tactical HUD 1 Map Filters NONE Filters NONE Steam 1 RUN: ab969c0d-a6e4-44d3-9099-31411a897a75